[Event "EYCC Girls-U10 2019"]
[Site "Bratislava"]
[Date "2019.08.06"]
[Round "5.20"]
[White "Kusakina, Uliana"]
[Black "Bursali, Ela"]
[Result "1-0"]
[ECO "C54"]
[WhiteElo "1364"]
[BlackElo "1197"]
[Annotator "NA"]
[PlyCount "128"]
[EventDate "2019.08.02"]
[EventType "swiss"]
[EventCountry "SVK"]
[SourceTitle "playchess.com"]
[Source "ChessBase"]
[SourceQuality "1"]
[TimeControl "40/5400+30:1800+30"]

1. e4 {[%emt 0:00:00]} e5 {[%emt 0:00:00]} 2. Nf3 {[%emt 0:00:00]} Nc6 {[%emt 0:00:01]} 3. Bc4 {[%emt 0:00:04]} Bc5 {[%emt 0:00:32]} 4. c3 {[%emt 0:00:14]} Nf6 {[%emt 0:00:08]} 5. d4 {[%emt 0:00:24]} exd4 {[%emt 0:02:50]} 6. e5 {[%emt 0:00:31]} d5 {[%emt 0:01:58]} 7. Bb5 {[%emt 0:00:57]} Ne4 {[%emt 0:00:48]} 8. cxd4 {[%emt 0:00:21]} Bb6 {[%emt 0:00:08]} 9. Nc3 {[%emt 0:04:29]} Nxc3 {[%emt 0:04:47]} 10. bxc3 {[%emt 0:00:11]} h6 {[%emt 0:01:05]} 11. O-O {[%emt 0:03:44]} O-O {[%emt 0:00:31]} 12. Qd3 {[%emt 0:05:11]} Ne7 {[%emt 0:14:43]} 13. Nh4 {[%emt 0:05:27]} Bd7 {[%emt 0:03:30]} 14. Bxd7 {[%emt 0:00:46]} Qxd7 {[%emt 0:00:00]} 15. Qg3 {[%emt 0:01:07]} Qe6 {[%emt 0:03:58]} 16. f4 {[%emt 0:03:21]} Nf5 {[%emt 0:01:12]} 17. Nxf5 {[%emt 0:00:41]} Qxf5 {[%emt 0:00:05]} 18. Qf3 {[%emt 0:00:32]} c6 {[%emt 0:03:10]} 19. g4 {[%emt 0:02:10]} Qh7 {[%emt 0:03:22]} 20. f5 {[%emt 0:01:15]} Bd8 {[%emt 0:02:23]} 21. Qg3 {[%emt 0:02:10]} Bg5 {[%emt 0:01:08]} 22. h4 {[%emt 0:01:02]} Bxc1 {[%emt 0:00:14]} 23. Raxc1 {[%emt 0:00:12]} g6 {[%emt 0:01:38]} 24. g5 {[%emt 0:07:50]} hxg5 {[%emt 0:00:53]} 25. hxg5 {[%emt 0:00:53]} gxf5 {[%emt 0:00:18]} 26. Kg2 {[%emt 0:00:12]} f6 {[%emt 0:13:57]} 27. Rh1 {[%emt 0:01:45]} f4 {[%emt 0:05:00]} 28. Qf3 {[%emt 0:11:28]} Qg6 {[%emt 0:12:46]} 29. exf6 {[%emt 0:03:43]} Rxf6 {[%emt 0:03:08]} 30. Kf2 {[%emt 0:00:32]} Rff8 {[%emt 0:01:20]} 31. Rh6 {[%emt 0:00:56]} Qe4 {[%emt 0:02:49]} 32. Re1 {[%emt 0:04:54]} Qxf3+ {[%emt 0:01:01]} 33. Kxf3 {[%emt 0:00:21]} Rae8 {[%emt 0:08:22]} 34. Rhe6 {[%emt 0:03:31]} Rb8 {[%emt 0:02:33]} 35. Rg6+ {[%emt 0:02:50]} Kh7 {[%emt 0:03:43]} 36. Ree6 {[%emt 0:00:18]} a5 {[%emt 0:00:21]} 37. Rh6+ {[%emt 0:00:45]} Kg7 {[%emt 0:00:16]} 38. Reg6+ {[%emt 0:00:39]} Kf7 {[%emt 0:00:14]} 39. Rf6+ {[%emt 0:00:10]} Kg7 {[%emt 0:00:28]} 40. Kxf4 {[%emt 0:00:00]} Rxf6+ {[%emt 0:00:00]} 41. Rxf6 {[%emt 0:00:19]} Re8 {[%emt 0:01:05]} 42. Rd6 {[%emt 0:02:23]} Re7 {[%emt 0:00:07]} 43. Kf5 {[%emt 0:00:32]} Kf7 {[%emt 0:00:46]} 44. Rf6+ {[%emt 0:00:40]} Kg7 {[%emt 0:00:11]} 45. Re6 {[%emt 0:00:46]} Rd7 {[%emt 0:00:25]} 46. Ke5 {[%emt 0:01:03]} Kf7 {[%emt 0:02:15]} 47. Rf6+ {[%emt 0:00:54]} Ke8 {[%emt 0:07:43]} 48. Re6+ {[%emt 0:02:05]} Kf7 {[%emt 0:00:39]} 49. Kf5 {[%emt 0:01:38]} Kg7 {[%emt 0:00:26]} 50. g6 {[%emt 0:01:53]} a4 {[%emt 0:00:29]} 51. Re1 {[%emt 0:01:42]} Rc7 {[%emt 0:02:18]} 52. Rh1 {[%emt 0:00:32]} Kg8 {[%emt 0:02:00]} 53. Ke6 {[%emt 0:05:20]} Rg7 {[%emt 0:01:31]} 54. Rg1 {[%emt 0:00:41]} Kf8 {[%emt 0:00:41]} 55. Kf6 {[%emt 0:01:58]} Rc7 {[%emt 0:01:24]} 56. Rh1 {[%emt 0:01:30]} Kg8 {[%emt 0:00:15]} 57. Re1 {[%emt 0:03:57]} Kf8 {[%emt 0:01:03]} 58. Re6 {[%emt 0:00:41]} a3 {[%emt 0:00:07]} 59. Rd6 {[%emt 0:00:22]} Rc8 {[%emt 0:00:28]} 60. Rd7 {[%emt 0:00:44]} Rb8 {[%emt 0:01:39]} 61. Rf7+ {[%emt 0:01:09]} Kg8 {[%emt 0:00:20]} 62. g7 {[%emt 0:00:48]} Rd8 {[%emt 0:02:01]} 63. Ke7 {[%emt 0:01:24]} Rd7+ {[%emt 0:00:58]} 64. Kxd7 {[%emt 0:00:12]} Kxf7 {[%emt 0:00:04]} 1-0

[Event "EYCC Girls-U10 2019"]
[Site "Bratislava"]
[Date "2019.08.06"]
[Round "5.22"]
[White "Salmina, Veronika"]
[Black "Mihaeli, Shira"]
[Result "1-0"]
[ECO "D06"]
[WhiteElo "1335"]
[BlackElo "1172"]
[Annotator "NA"]
[PlyCount "65"]
[EventDate "2019.08.02"]
[EventType "swiss"]
[EventCountry "SVK"]
[SourceTitle "playchess.com"]
[Source "ChessBase"]
[SourceQuality "1"]
[TimeControl "40/5400+30:1800+30"]

1. d4 d5 2. c4 Bf5 3. cxd5 Bxb1 4. Qa4+ c6 5. Rxb1 Qxd5 6. Nf3 e6 7. Bg5 Nd7 8. a3 Bd6 9. e3 Ngf6 10. Bd3 O-O 11. O-O Ne4 12. Bh4 Ndf6 13. Qc2 Rae8 14. Bxf6 Nxf6 15. e4 Bxh2+ 16. Nxh2 Qh5 17. e5 Nd5 18. Qe2 Qh6 19. Ng4 Qg5 20. Qe4 f5 21. exf6 Nxf6 22. Nxf6+ Rxf6 23. Qxh7+ Kf7 24. f4 Qd5 25. Qe4 Qh5 26. Rf3 Qg4 27. Re1 Rh8 28. f5 Qg5 29. fxe6+ Ke7 30. Rxf6 gxf6 31. Qg6 Rh1+ 32. Kf2 Qh4+ 33. Kf3 1-0

[Event "EYCC Girls-U10 2019"]
[Site "Bratislava"]
[Date "2019.08.07"]
[Round "6.1"]
[White "Hnatyshyn, Anastasiia"]
[Black "Shukhman, Anna"]
[Result "0-1"]
[ECO "A46"]
[WhiteElo "1380"]
[BlackElo "1806"]
[Annotator "NA"]
[PlyCount "82"]
[EventDate "2019.08.02"]
[EventType "swiss"]
[EventCountry "SVK"]
[SourceTitle "playchess.com"]
[Source "ChessBase"]
[SourceQuality "1"]
[TimeControl "40/5400+30:1800+30"]

1. d4 {[%emt 0:00:00]} Nf6 {[%emt 0:00:00]} 2. Nf3 {[%emt 0:00:00]} c5 {[%emt 0:00:00]} 3. Bf4 {[%emt 0:00:20]} cxd4 {[%emt 0:00:15]} 4. Nxd4 {[%emt 0:00:14]} e5 {[%emt 0:00:53]} 5. Bxe5 {[%emt 0:00:57]} Qa5+ {[%emt 0:00:11]} 6. Nc3 {[%emt 0:00:07]} Qxe5 {[%emt 0:00:04]} 7. e3 {[%emt 0:00:21]} Bb4 {[%emt 0:00:51]} 8. Be2 {[%emt 0:00:38]} O-O {[%emt 0:01:30]} 9. O-O {[%emt 0:01:13]} Nc6 {[%emt 0:01:44]} 10. Nf3 {[%emt 0:00:36]} Qa5 {[%emt 0:04:47]} 11. Nb5 {[%emt 0:00:58]} a6 {[%emt 0:01:27]} 12. Nbd4 {[%emt 0:00:18]} d5 {[%emt 0:01:04]} 13. a3 {[%emt 0:00:24]} Bd6 {[%emt 0:00:22]} 14. Bd3 {[%emt 0:00:29]} Qc7 {[%emt 0:01:10]} 15. h3 {[%emt 0:00:18]} Bd7 {[%emt 0:01:36]} 16. c3 {[%emt 0:01:25]} Rfe8 {[%emt 0:01:51]} 17. Qc2 {[%emt 0:00:21]} Ne4 {[%emt 0:01:05]} 18. Rad1 {[%emt 0:00:38]} Qc8 {[%emt 0:03:40]} 19. Rfe1 {[%emt 0:01:15]} Nxd4 {[%emt 0:04:13]} 20. exd4 {[%emt 0:00:19]} Nf6 {[%emt 0:07:36]} 21. Qb3 {[%emt 0:02:43]} b5 {[%emt 0:01:42]} 22. Ne5 {[%emt 0:01:00]} Qc7 {[%emt 0:00:55]} 23. f4 {[%emt 0:00:39]} Bc6 {[%emt 0:00:17]} 24. Qc2 {[%emt 0:00:39]} Rad8 {[%emt 0:02:07]} 25. Re2 {[%emt 0:00:55]} Ne4 {[%emt 0:01:28]} 26. Rde1 {[%emt 0:02:42]} Bb7 {[%emt 0:01:08]} 27. Bxe4 {[%emt 0:00:41]} dxe4 {[%emt 0:00:06]} 28. g3 {[%emt 0:00:55]} Qc8 {[%emt 0:01:11]} 29. Kh2 {[%emt 0:00:13]} Bxe5 {[%emt 0:00:52]} 30. fxe5 {[%emt 0:02:07]} Qe6 {[%emt 0:01:34]} 31. Rf2 {[%emt 0:00:59]} Qh6 {[%emt 0:04:07]} 32. Rf4 {[%emt 0:04:44]} Bd5 {[%emt 0:02:22]} 33. Qe2 {[%emt 0:05:23]} Qb6 {[%emt 0:01:43]} 34. Qf2 {[%emt 0:01:50]} Rd7 {[%emt 0:00:48]} 35. Rf1 {[%emt 0:07:54]} a5 {[%emt 0:01:35]} 36. Qd2 {[%emt 0:00:46]} b4 {[%emt 0:00:09]} 37. axb4 {[%emt 0:09:10]} axb4 38. Rg4 bxc3 {[%emt 0:01:39]} 39. bxc3 {[%emt 0:00:48]} Ra7 {[%emt 0:00:34]} 40. Qf4 {[%emt 0:00:00]} Ra2+ {[%emt 0:00:00]} 41. Kg1 {[%emt 0:03:52]} e3 {[%emt 0:01:12]} 0-1

[Event "EYCC Girls-U10 2019"]
[Site "Bratislava"]
[Date "2019.08.07"]
[Round "6.2"]
[White "Iudina, Veronika"]
[Black "Goriachkina, Oksana"]
[Result "1-0"]
[ECO "D05"]
[WhiteElo "1357"]
[BlackElo "1417"]
[Annotator "NA"]
[PlyCount "83"]
[EventDate "2019.08.02"]
[EventType "swiss"]
[EventCountry "SVK"]
[SourceTitle "playchess.com"]
[Source "ChessBase"]
[SourceQuality "1"]
[TimeControl "40/5400+30:1800+30"]

1. d4 {[%emt 0:00:00]} d5 {[%emt 0:00:03]} 2. Nf3 {[%emt 0:00:00]} Nf6 3. e3 e6 {[%emt 0:03:02]} 4. Bd3 {[%emt 0:01:08]} Be7 {[%emt 0:00:24]} 5. Nbd2 {[%emt 0:00:38]} O-O {[%emt 0:00:29]} 6. O-O {[%emt 0:00:19]} Nbd7 {[%emt 0:01:33]} 7. e4 dxe4 {[%emt 0:01:53]} 8. Nxe4 {[%emt 0:05:03]} Nxe4 {[%emt 0:00:25]} 9. Bxe4 {[%emt 0:00:09]} Nf6 {[%emt 0:00:08]} 10. Bd3 {[%emt 0:00:50]} b6 {[%emt 0:01:46]} 11. c3 {[%emt 0:06:52]} Bb7 {[%emt 0:00:12]} 12. Re1 {[%emt 0:03:33]} c5 {[%emt 0:00:40]} 13. Be3 {[%emt 0:04:57]} Nd5 {[%emt 0:02:28]} 14. Ne5 {[%emt 0:09:40]} Nxe3 {[%emt 0:08:11]} 15. Rxe3 {[%emt 0:04:01]} cxd4 {[%emt 0:02:05]} 16. Bxh7+ {[%emt 0:02:04]} Kh8 {[%emt 0:05:41]} 17. Qh5 {[%emt 0:02:35]} Bg5 {[%emt 0:02:41]} 18. Rg3 {[%emt 0:02:42]} Bh6 {[%emt 0:02:01]} 19. Nxf7+ {[%emt 0:03:21]} Rxf7 {[%emt 0:00:12]} 20. Qxf7 {[%emt 0:00:07]} dxc3 {[%emt 0:12:58]} 21. bxc3 {[%emt 0:02:32]} Bd5 {[%emt 0:04:27]} 22. Bc2 {[%emt 0:02:28]} Qf6 {[%emt 0:01:09]} 23. Qxf6 {[%emt 0:01:56]} gxf6 {[%emt 0:00:02]} 24. Bb3 {[%emt 0:02:48]} Bf4 {[%emt 0:02:46]} 25. Bxd5 {[%emt 0:01:27]} exd5 {[%emt 0:00:11]} 26. Rd3 {[%emt 0:01:10]} Rd8 {[%emt 0:02:15]} 27. Rad1 {[%emt 0:00:14]} Be5 {[%emt 0:00:12]} 28. Rxd5 {[%emt 0:00:17]} Rxd5 {[%emt 0:00:19]} 29. Rxd5 {[%emt 0:00:04]} Bxc3 30. Rd8+ {[%emt 0:00:03]} Kg7 {[%emt 0:00:12]} 31. Rd7+ {[%emt 0:00:06]} Kg6 {[%emt 0:00:11]} 32. Rxa7 {[%emt 0:00:08]} Bd4 {[%emt 0:00:08]} 33. Rd7 {[%emt 0:00:37]} Bc5 {[%emt 0:00:41]} 34. a4 {[%emt 0:00:17]} Bf8 {[%emt 0:02:35]} 35. g3 {[%emt 0:00:50]} Bc5 {[%emt 0:00:45]} 36. Kg2 {[%emt 0:00:08]} Bb4 {[%emt 0:02:01]} 37. f4 {[%emt 0:00:39]} Bc5 {[%emt 0:00:42]} 38. g4 f5 {[%emt 0:07:05]} 39. g5 {[%emt 0:00:59]} Bb4 {[%emt 0:02:11]} 40. Rc7 {[%emt 0:00:00]} Ba5 {[%emt 0:00:00]} 41. Rc6+ {[%emt 0:02:06]} Kg7 {[%emt 0:09:16]} 42. Rf6 {[%emt 0:00:11]} 1-0

[Event "EYCC Girls-U10 2019"]
[Site "Bratislava"]
[Date "2019.08.07"]
[Round "6.3"]
[White "Stoll, Lucia"]
[Black "Petrenko, Maryna"]
[Result "1-0"]
[ECO "B31"]
[WhiteElo "1403"]
[BlackElo "1335"]
[Annotator "NA"]
[PlyCount "161"]
[EventDate "2019.08.02"]
[EventType "swiss"]
[EventCountry "SVK"]
[SourceTitle "playchess.com"]
[Source "ChessBase"]
[SourceQuality "1"]
[TimeControl "40/5400+30:1800+30"]

1. e4 {[%emt 0:00:00]} c5 {[%emt 0:00:00]} 2. Nf3 {[%emt 0:00:00]} Nc6 {[%emt 0:00:06]} 3. Bb5 {[%emt 0:00:18]} g6 {[%emt 0:00:35]} 4. c3 {[%emt 0:01:16]} Nf6 {[%emt 0:00:36]} 5. e5 {[%emt 0:00:44]} Nd5 {[%emt 0:00:18]} 6. d4 {[%emt 0:01:31]} cxd4 {[%emt 0:00:23]} 7. Bxc6 {[%emt 0:01:12]} dxc6 {[%emt 0:09:00]} 8. cxd4 {[%emt 0:00:35]} Bg7 {[%emt 0:04:02]} 9. O-O {[%emt 0:00:24]} O-O {[%emt 0:00:57]} 10. Nc3 {[%emt 0:01:10]} Bf5 {[%emt 0:29:08]} 11. Bd2 {[%emt 0:16:10]} Nb4 {[%emt 0:09:47]} 12. Be3 {[%emt 0:07:17]} c5 {[%emt 0:05:24]} 13. d5 {[%emt 0:18:44]} Nd3 {[%emt 0:06:17]} 14. h3 {[%emt 0:08:09]} c4 {[%emt 0:05:11]} 15. Qe2 {[%emt 0:15:04]} Qc8 {[%emt 0:09:11]} 16. Bg5 {[%emt 0:03:45]} f6 {[%emt 0:03:51]} 17. exf6 {[%emt 0:01:39]} exf6 {[%emt 0:00:58]} 18. Be3 {[%emt 0:00:42]} Re8 {[%emt 0:05:06]} 19. Qd2 {[%emt 0:01:59]} Ne5 {[%emt 0:05:21]} 20. Nd4 {[%emt 0:01:54]} Bd3 {[%emt 0:02:08]} 21. Rfe1 {[%emt 0:01:44]} Nd7 {[%emt 0:00:52]} 22. Ndb5 {[%emt 0:02:01]} Bf8 {[%emt 0:01:02]} 23. d6 {[%emt 0:03:05]} Ne5 {[%emt 0:00:40]} 24. Nd5 {[%emt 0:03:32]} Kg7 {[%emt 0:00:32]} 25. Bh6+ {[%emt 0:01:46]} Kf7 {[%emt 0:00:21]} 26. Ndc7 {[%emt 0:01:16]} Rd8 {[%emt 0:00:34]} 27. Nxa8 {[%emt 0:00:53]} Qxa8 {[%emt 0:00:08]} 28. Bxf8 {[%emt 0:00:47]} Kxf8 {[%emt 0:00:11]} 29. Qh6+ {[%emt 0:01:02]} Kg8 {[%emt 0:00:14]} 30. Nc7 {[%emt 0:00:46]} Qc8 {[%emt 0:00:20]} 31. Nd5 {[%emt 0:00:22]} Qe6 {[%emt 0:00:41]} 32. Ne7+ {[%emt 0:00:41]} Kh8 {[%emt 0:00:22]} 33. Nxg6+ {[%emt 0:00:36]} Bxg6 {[%emt 0:00:12]} 34. f4 {[%emt 0:00:27]} Nf7 {[%emt 0:00:38]} 35. Rxe6 {[%emt 0:00:36]} Nxh6 {[%emt 0:00:02]} 36. Rd1 {[%emt 0:00:36]} Bd3 {[%emt 0:00:54]} 37. Rxf6 {[%emt 0:00:53]} Kg7 {[%emt 0:00:09]} 38. Re6 {[%emt 0:00:31]} Nf5 {[%emt 0:00:52]} 39. g4 {[%emt 0:00:41]} Nxd6 {[%emt 0:00:25]} 40. Re7+ {[%emt 0:00:00]} Kf8 {[%emt 0:00:00]} 41. Re6 {[%emt 0:01:04]} Kf7 {[%emt 0:02:22]} 42. f5 {[%emt 0:00:33]} a6 {[%emt 0:19:27]} 43. Kf2 {[%emt 0:00:53]} Nb5 {[%emt 0:02:35]} 44. Kg3 {[%emt 0:01:32]} Rd4 {[%emt 0:01:08]} 45. Rde1 {[%emt 0:00:52]} Rd7 {[%emt 0:00:42]} 46. Kf4 {[%emt 0:01:24]} Nd4 {[%emt 0:00:41]} 47. h4 {[%emt 0:01:45]} Rc7 {[%emt 0:01:01]} 48. Rd6 {[%emt 0:01:10]} Nb5 {[%emt 0:00:30]} 49. Rh6 {[%emt 0:01:06]} Kg7 {[%emt 0:00:48]} 50. Rhe6 {[%emt 0:01:07]} Kf7 {[%emt 0:00:25]} 51. h5 {[%emt 0:01:56]} Nd4 {[%emt 0:00:54]} 52. Rd6 {[%emt 0:00:34]} Nc6 {[%emt 0:01:45]} 53. Kg5 {[%emt 0:01:45]} Ne7 {[%emt 0:01:23]} 54. Rh6 {[%emt 0:01:25]} Kg8 {[%emt 0:00:31]} 55. Rhe6 {[%emt 0:01:32]} Kf7 {[%emt 0:01:02]} 56. Kh6 {[%emt 0:00:34]} Nxf5+ {[%emt 0:02:35]} 57. gxf5 {[%emt 0:01:00]} Bxf5 {[%emt 0:00:07]} 58. R6e5 {[%emt 0:00:46]} Kf6 {[%emt 0:01:23]} 59. Rd5 {[%emt 0:01:08]} Bd3 {[%emt 0:01:14]} 60. Rd8 {[%emt 0:01:03]} Rf7 {[%emt 0:01:25]} 61. Rd6+ {[%emt 0:01:06]} Kf5 {[%emt 0:00:21]} 62. Rd5+ {[%emt 0:01:57]} Kf6 {[%emt 0:00:22]} 63. Re3 {[%emt 0:00:38]} Rc7 {[%emt 0:00:35]} 64. Rd8 {[%emt 0:00:45]} Kf7 {[%emt 0:00:45]} 65. Rd6 {[%emt 0:00:54]} Bb1 {[%emt 0:00:23]} 66. a3 {[%emt 0:00:54]} Bd3 {[%emt 0:00:24]} 67. Re5 {[%emt 0:00:09]} Bb1 {[%emt 0:00:32]} 68. Kg5 {[%emt 0:00:08]} Kg7 {[%emt 0:00:35]} 69. h6+ {[%emt 0:00:25]} Kg8 {[%emt 0:00:30]} 70. Rf6 {[%emt 0:00:12]} Bg6 {[%emt 0:00:13]} 71. Rd5 {[%emt 0:00:16]} Rc8 {[%emt 0:00:17]} 72. Rd7 {[%emt 0:01:02]} Bd3 {[%emt 0:00:16]} 73. Rxb7 {[%emt 0:01:11]} Rc5+ {[%emt 0:00:35]} 74. Kf4 {[%emt 0:00:24]} Rc8 {[%emt 0:00:05]} 75. Ke5 {[%emt 0:00:42]} Be2 {[%emt 0:00:47]} 76. Kd4 {[%emt 0:01:22]} Bd3 {[%emt 0:00:18]} 77. Kc3 {[%emt 0:01:05]} Be4 {[%emt 0:00:49]} 78. Ra7 {[%emt 0:00:34]} Bd3 {[%emt 0:00:25]} 79. Rfxa6 {[%emt 0:00:47]} Be4 {[%emt 0:00:05]} 80. Rf6 {[%emt 0:00:20]} Bd3 {[%emt 0:00:11]} 81. a4 {[%emt 0:00:29]} 1-0

[Event "EYCC Girls-U10 2019"]
[Site "Bratislava"]
[Date "2019.08.07"]
[Round "6.4"]
[White "Prochaieva, Alina"]
[Black "Liashkevich, Lizaveta"]
[Result "1-0"]
[ECO "B53"]
[WhiteElo "1247"]
[BlackElo "1406"]
[Annotator "NA"]
[PlyCount "163"]
[EventDate "2019.08.02"]
[EventType "swiss"]
[EventCountry "SVK"]
[SourceTitle "playchess.com"]
[Source "ChessBase"]
[SourceQuality "1"]
[TimeControl "40/5400+30:1800+30"]

1. e4 {[%emt 0:00:00]} c5 {[%emt 0:00:00]} 2. Nf3 {[%emt 0:00:08]} d6 {[%emt 0:00:00]} 3. d4 {[%emt 0:00:09]} cxd4 {[%emt 0:00:08]} 4. Qxd4 {[%emt 0:00:06]} Nc6 {[%emt 0:00:17]} 5. Qd3 {[%emt 0:00:11]} e6 {[%emt 0:01:10]} 6. c4 {[%emt 0:00:09]} Nf6 {[%emt 0:00:54]} 7. Nc3 {[%emt 0:00:11]} Be7 {[%emt 0:00:41]} 8. Be2 {[%emt 0:00:35]} a6 {[%emt 0:00:52]} 9. O-O {[%emt 0:00:20]} O-O {[%emt 0:01:14]} 10. Rd1 {[%emt 0:00:16]} Qd7 {[%emt 0:07:54]} 11. Bf4 {[%emt 0:06:06]} Rd8 {[%emt 0:00:26]} 12. Rac1 {[%emt 0:02:32]} b6 {[%emt 0:04:10]} 13. e5 {[%emt 0:16:37]} dxe5 {[%emt 0:00:55]} 14. Nxe5 {[%emt 0:05:16]} Nxe5 {[%emt 0:02:58]} 15. Bxe5 {[%emt 0:08:00]} Qxd3 {[%emt 0:05:35]} 16. Rxd3 {[%emt 0:05:59]} Rxd3 {[%emt 0:00:16]} 17. Bxd3 {[%emt 0:00:03]} Nd7 {[%emt 0:02:25]} 18. Bg3 {[%emt 0:08:05]} Nc5 {[%emt 0:01:48]} 19. Be2 {[%emt 0:05:16]} Ra7 {[%emt 0:02:54]} 20. Rd1 {[%emt 0:06:12]} Rd7 {[%emt 0:05:42]} 21. Rxd7 {[%emt 0:03:49]} Nxd7 {[%emt 0:00:09]} 22. Bf3 {[%emt 0:05:15]} Bd8 {[%emt 0:00:45]} 23. Bd6 {[%emt 0:04:25]} f6 {[%emt 0:06:06]} 24. Bc6 {[%emt 0:07:36]} Nf8 {[%emt 0:05:06]} 25. Ne2 {[%emt 0:05:20]} f5 {[%emt 0:08:31]} 26. Kf1 {[%emt 0:05:11]} Kf7 {[%emt 0:00:49]} 27. Nf4 {[%emt 0:02:26]} g5 {[%emt 0:02:31]} 28. Nd3 {[%emt 0:00:59]} Ng6 {[%emt 0:00:36]} 29. Ke2 {[%emt 0:00:48]} Bf6 {[%emt 0:02:20]} 30. Ke3 {[%emt 0:00:55]} e5 {[%emt 0:05:49]} 31. f3 {[%emt 0:01:08]} f4+ {[%emt 0:00:38]} 32. Ke4 {[%emt 0:00:50]} Ke6 {[%emt 0:00:36]} 33. Bc7 {[%emt 0:00:22]} Ne7 {[%emt 0:03:34]} 34. Bd5+ {[%emt 0:00:36]} Kd7 {[%emt 0:02:27]} 35. Bxe5 {[%emt 0:00:21]} Bxe5 {[%emt 0:03:38]} 36. Kxe5 {[%emt 0:00:27]} Ke8 {[%emt 0:01:11]} 37. Be4 {[%emt 0:00:20]} h6 {[%emt 0:00:24]} 38. Kd6 {[%emt 0:00:40]} Bf5 {[%emt 0:00:31]} 39. Nf2 {[%emt 0:01:11]} Bxe4 {[%emt 0:00:19]} 40. fxe4 {[%emt 0:00:00]} h5 {[%emt 0:00:00]} 41. h3 {[%emt 0:01:21]} Ng6 {[%emt 0:01:00]} 42. Kc7 {[%emt 0:09:57]} Ne5 43. b3 {[%emt 0:03:43]} Nd7 {[%emt 0:00:43]} 44. Nd3 {[%emt 0:02:17]} Nc5 {[%emt 0:03:57]} 45. Nf2 {[%emt 0:02:20]} Nd7 {[%emt 0:00:06]} 46. b4 Ke7 {[%emt 0:01:32]} 47. Nd3 {[%emt 0:04:02]} Ke6 {[%emt 0:00:23]} 48. c5 {[%emt 0:03:58]} bxc5 {[%emt 0:01:34]} 49. bxc5 {[%emt 0:04:57]} Ne5 {[%emt 0:05:30]} 50. Nf2 g4 51. hxg4 {[%emt 0:01:42]} hxg4 {[%emt 0:00:36]} 52. c6 {[%emt 0:00:23]} g3 {[%emt 0:02:00]} 53. Nh3 {[%emt 0:00:17]} Ng6 {[%emt 0:00:43]} 54. Kb7 {[%emt 0:00:56]} Ke5 {[%emt 0:00:16]} 55. Ng5 {[%emt 0:01:49]} Ne7 {[%emt 0:04:40]} 56. c7 {[%emt 0:00:33]} Kd4 {[%emt 0:00:07]} 57. c8=Q {[%emt 0:00:35]} Nxc8 {[%emt 0:00:06]} 58. Kxc8 {[%emt 0:00:05]} Ke3 {[%emt 0:00:44]} 59. e5 {[%emt 0:00:13]} Kf2 {[%emt 0:00:05]} 60. e6 {[%emt 0:00:24]} Kxg2 {[%emt 0:00:06]} 61. e7 {[%emt 0:00:17]} f3 {[%emt 0:00:36]} 62. Nxf3 {[%emt 0:00:32]} Kxf3 {[%emt 0:00:07]} 63. e8=Q {[%emt 0:00:08]} g2 {[%emt 0:00:17]} 64. Qg6 {[%emt 0:00:38]} Kf2 {[%emt 0:00:13]} 65. Qf5+ {[%emt 0:00:23]} Kg3 {[%emt 0:00:52]} 66. Qg5+ {[%emt 0:00:13]} Kf2 {[%emt 0:00:27]} 67. Qf4+ {[%emt 0:00:11]} Ke2 {[%emt 0:00:30]} 68. Qg3 {[%emt 0:00:14]} Kf1 {[%emt 0:00:05]} 69. Qf3+ {[%emt 0:00:07]} Kg1 {[%emt 0:00:06]} 70. Kb7 {[%emt 0:00:07]} a5 {[%emt 0:00:16]} 71. Kb6 {[%emt 0:00:17]} Kh2 {[%emt 0:00:18]} 72. Qh5+ {[%emt 0:00:21]} Kg3 {[%emt 0:00:09]} 73. Qg5+ {[%emt 0:00:06]} Kf2 {[%emt 0:00:41]} 74. Qf4+ {[%emt 0:00:05]} Ke2 {[%emt 0:00:07]} 75. Qg3 {[%emt 0:00:05]} Kf1 {[%emt 0:00:04]} 76. Qf3+ {[%emt 0:00:06]} Kg1 {[%emt 0:00:07]} 77. Kxa5 {[%emt 0:00:07]} Kh2 {[%emt 0:00:07]} 78. Qh5+ {[%emt 0:00:20]} Kg3 {[%emt 0:00:06]} 79. Qg5+ {[%emt 0:00:08]} Kf2 {[%emt 0:00:06]} 80. Qf4+ {[%emt 0:00:07]} Kg1 {[%emt 0:00:05]} 81. Kb6 {[%emt 0:00:16]} Kh1 {[%emt 0:00:04]} 82. Qh4+ {[%emt 0:00:05]} 1-0

[Event "EYCC Girls-U10 2019"]
[Site "Bratislava"]
[Date "2019.08.07"]
[Round "6.5"]
[White "Fedorova, Olesya"]
[Black "Shatil, Or"]
[Result "1-0"]
[ECO "B22"]
[WhiteElo "1516"]
[BlackElo "1185"]
[Annotator "NA"]
[PlyCount "65"]
[EventDate "2019.08.02"]
[EventType "swiss"]
[EventCountry "SVK"]
[SourceTitle "playchess.com"]
[Source "ChessBase"]
[SourceQuality "1"]
[TimeControl "40/5400+30:1800+30"]

1. e4 c5 2. c3 d5 3. exd5 Qxd5 4. d4 Nf6 5. Nf3 Bg4 6. dxc5 Qxc5 7. Na3 a6 8. Be3 Qc7 9. h3 Bh5 10. g4 Bg6 11. Qa4+ Nbd7 12. O-O-O e6 13. Bf4 Qc8 14. Bg2 Ne4 15. Ne5 b5 16. Qd4 Nxe5 17. Bxe4 Bxe4 18. Qxe4 Ng6 19. Nc2 Bc5 20. Be3 O-O 21. h4 Bxe3+ 22. Nxe3 Qc7 23. h5 Nf4 24. h6 g6 25. g5 Rad8 26. Ng4 Qc4 27. Qe5 Ne2+ 28. Kb1 f6 29. Nxf6+ Kf7 30. Nxh7 Ke7 31. Nxf8 Rxf8 32. Qd6+ Kf7 33. Qd7+ {[%emt 1:46:30]} 1-0